bitfinex/quotes_SOLUSD_20241126
["timestamp","ask_amount","ask_price","bid_price","bid_amount"]
[1732651980810,19.99817783,229.79,229.66,0.518436]
[1732651980811,19.99817783,229.68,229.66,0.518436]
[1732651981013,0.12549,229.67,229.66,0.518436]
[1732651981321,20.12366783,229.67,229.66,0.518436]
[1732651983402,43.90055183,229.67,229.66,0.518436]
[1732651983602,43.90055183,229.67,229.45,45.392]
[1732651983603,23.902374,229.61,229.47,19.99817783]
[1732651983799,23.902374,229.61,229.45,45.392]
[1732651983800,19.99817783,229.57,229.49,19.99817783]
[1732651984115,0.12549,229.56,229.49,20.99417516]
[1732651985696,0.12549,229.56,229.5,0.99595393]
[1732651985891,0.12549,229.54,229.5,0.99595393]
[1732651986095,19.99817783,229.53,229.5,0.99595393]
[1732651986305,0.12549,229.54,229.5,0.99595393]
[1732651986511,0.12549,229.56,229.5,20.99413176]
[1732651986991,0.12549,229.56,229.5,19.99817783]
[1732651987190,0.12549,229.56,229.48,19.99817783]
[1732651987495,0.12549,229.56,229.53,19.99817783]
[1732651988183,39.99817783,229.62,229.53,19.99817783]
[1732651988389,39.99817783,229.62,229.53,24.35477783]
[1732651988390,19.99817783,229.62,229.53,24.35477783]
[1732651988600,19.99817783,229.61,229.53,24.35477783]
[1732651989006,19.99817783,229.62,229.54,19.99817783]
[1732651989515,19.99817783,229.64,229.56,19.99817783]
[1732651989695,30.8524,229.67,229.59,19.99817783]
[1732651989696,19.99817783,229.66,229.59,19.99817783]
[1732651989898,33.11537783,229.68,229.61,19.99817783]
[1732651990202,30.8524,229.73,229.62,19.99817783]
[1732651990388,19.99817783,229.7,229.62,19.99817783]
[1732651990712,19.99817783,229.71,229.63,19.99817783]
[1732651990912,19.99817783,229.69,229.62,19.99817783]
[1732651991290,19.99817783,229.64,229.57,24.35407783]
[1732651991493,20.12366783,229.63,229.55,19.99817783]
[1732651991886,20.12366783,229.63,229.54,4.3563]
[1732651991887,0.12549,229.64,229.58,19.99817783]
[1732651992094,0.12549,229.65,229.58,19.99817783]
[1732651992698,0.12549,229.65,229.59,19.99817783]
[1732651993002,19.99817783,229.63,229.56,19.99817783]
[1732651993200,20.12366783,229.62,229.54,24.35447783]
[1732651993399,19.99817783,229.61,229.54,4.3563]
[1732651993603,0.12549,229.57,229.51,24.35507783]
[1732651993916,19.99817783,229.56,229.49,4.3574]
[1732651994130,1.7419,229.63,229.45,33.3043]
[1732651994131,0.5,229.62,229.46,33.3043]
[1732651994291,19.99817783,229.72,229.57,5.0]
[1732651994602,19.99817783,229.68,229.61,19.99817783]
[1732651995193,19.99817783,229.7,229.61,19.99817783]
[1732651995595,19.99817783,229.7,229.62,4.355]
[1732651996208,19.99817783,229.72,229.65,19.99817783]
[1732651996617,19.99817783,229.72,229.63,19.99817783]
[1732651997315,19.99817783,229.7,229.62,4.355]
[1732651997923,19.99817783,229.7,229.63,19.99817783]
[1732651998309,19.99817783,229.7,229.64,4.3546]
[1732651999012,19.99817783,229.72,229.64,4.3546]
[1732651999318,23.776884,229.75,229.61,19.99817783]
[1732651999319,19.99817783,229.68,229.61,19.99817783]
[1732651999521,19.99817783,229.66,229.59,19.99817783]
[1732652000397,19.99817783,229.67,229.6,19.99817783]
[1732652000724,43.776884,229.75,229.56,11.1122]
[1732652000725,19.99817783,229.72,229.64,19.99817783]
[1732652001016,19.99817783,229.69,229.62,19.99817783]
[1732652001618,19.99817783,229.71,229.64,19.99817783]
[1732652002031,19.99817783,229.72,229.64,19.99817783]
[1732652002199,19.99817783,229.73,229.65,19.99817783]
[1732652002398,19.99817783,229.72,229.64,19.99817783]
[1732652002699,19.99817783,229.74,229.64,4.3544]
[1732652002905,19.99817783,229.75,229.68,19.99817783]
[1732652003102,19.99817783,229.77,229.7,19.99817783]
[1732652003419,19.99817783,229.73,229.66,19.99817783]
[1732652003719,19.99817783,229.75,229.67,19.99817783]
[1732652004021,19.99817783,229.75,229.64,15.241]
[1732652004022,19.99817783,229.73,229.66,19.99817783]
[1732652004202,19.99817783,229.74,229.67,19.99817783]
[1732652004397,13.1172,229.78,229.67,19.99817783]
[1732652004398,19.99817783,229.75,229.67,19.99817783]
[1732652004796,19.99817783,229.75,229.68,19.99817783]
[1732652005010,23.776884,229.77,229.68,19.99817783]
[1732652005217,19.99817783,229.76,229.68,19.99817783]
[1732652005417,19.99817783,229.76,229.69,19.99817783]
[1732652005604,19.99817783,229.75,229.67,19.99817783]
[1732652005795,23.776884,229.77,229.66,19.99817783]
[1732652005796,19.99817783,229.74,229.66,19.99817783]
[1732652005993,19.99817783,229.75,229.67,19.99817783]
[1732652007107,19.99817783,229.76,229.69,19.99817783]
[1732652007521,19.99817783,229.76,229.67,24.35207783]
[1732652007825,39.99817783,229.78,229.71,19.99817783]
[1732652008008,50.85057783,229.81,229.73,19.99817783]
[1732652008197,13.0972,229.84,229.77,19.99817783]
[1732652008995,31.4566,229.86,229.79,19.99817783]
[1732652009422,19.99817783,229.85,229.78,4.3519]
[1732652010223,19.99817783,229.85,229.77,24.35027783]
[1732652011223,19.99817783,229.83,229.75,24.35057783]
[1732652011398,19.99817783,229.83,229.75,19.99817783]
[1732652011606,19.99817783,229.79,229.71,24.35127783]
[1732652011817,19.99817783,229.75,229.69,19.99817783]
[1732652012028,19.99817783,229.75,229.67,19.99817783]
[1732652012518,19.99817783,229.77,229.67,4.354]
[1732652012721,19.99817783,229.81,229.73,19.99817783]
[1732652013023,19.99817783,229.8,229.72,19.99817783]
[1732652013319,19.99817783,229.78,229.7,19.99817783]
[1732652013517,1.7403,229.84,229.71,19.99817783]
[1732652013518,19.99817783,229.79,229.71,19.99817783]
[1732652014120,19.99817783,229.79,229.71,24.35127783]
[1732652014506,19.99817783,229.79,229.72,19.99817783]
[1732652014814,24.276884,229.85,229.74,19.99817783]
[1732652014815,19.99817783,229.82,229.74,19.99817783]
[1732652015208,19.99817783,229.79,229.72,19.99817783]
[1732652016419,19.99817783,229.8,229.72,19.99817783]
[1732652017016,19.99817783,229.76,229.68,24.35197783]
[1732652017220,19.99817783,229.76,229.56,10.0]
[1732652017221,19.99817783,229.71,229.64,19.99817783]
[1732652017523,19.99817783,229.69,229.62,19.99817783]
[1732652017834,19.99817783,229.67,229.6,24.35347783]
[1732652018426,19.99817783,229.68,229.61,19.99817783]
[1732652018729,19.99817783,229.69,229.61,19.99817783]
[1732652018925,19.99817783,229.71,229.64,19.99817783]
[1732652019100,43.77506183,229.7,229.63,19.99817783]
[1732652019422,23.776884,229.7,229.63,19.99817783]
[1732652019599,19.99817783,229.69,229.61,19.99817783]
[1732652019803,43.77506183,229.7,229.62,19.99817783]
[1732652020225,19.99817783,229.68,229.61,4.3552]
[1732652020523,19.99817783,229.66,229.61,4.3552]
[1732652020708,19.99817783,229.66,229.59,4.3554]
[1732652020908,19.99817783,229.66,229.58,24.35387783]
[1732652023207,19.99817783,229.64,229.57,30.0121]
[1732652023410,19.99817783,229.64,229.56,24.35417783]
[1732652024209,19.99817783,229.66,229.58,19.99817783]
[1732652024514,23.776884,229.67,229.6,19.99817783]
[1732652024729,19.99817783,229.7,229.62,19.99817783]
[1732652024902,0.5,229.73,229.6,19.99817783]
[1732652024903,19.99817783,229.68,229.6,19.99817783]
[1732652025099,19.99817783,229.7,229.62,19.99817783]
[1732652025902,19.99817783,229.71,229.63,19.99817783]
[1732652026109,19.99817783,229.71,229.64,4.3546]
[1732652026306,19.99817783,229.71,229.63,24.35297783]
[1732652027120,19.99817783,229.7,229.63,24.35297783]
[1732652028524,19.99817783,229.7,229.63,19.99817783]
[1732652028728,19.99817783,229.79,229.63,19.99817783]
[1732652028729,1.7405,229.81,229.65,19.99817783]
[1732652028916,1.7405,229.81,229.67,19.99817783]
[1732652028917,19.99817783,229.74,229.67,19.99817783]
[1732652029826,19.99817783,229.74,229.67,24.35207783]
[1732652030005,5.0,229.83,229.64,30.0121]
[1732652030006,19.99817783,229.72,229.64,30.0121]
[1732652030206,19.99817783,229.66,229.59,32.8493]
[1732652030418,19.99817783,229.64,229.59,37.2048]
[1732652030704,19.99817783,229.67,229.59,57.20297783]
[1732652031022,19.99817783,229.68,229.6,19.99817783]
[1732652031243,19.99817783,229.65,229.59,4.3555]
[1732652031732,19.99817783,229.67,229.59,24.35367783]
[1732652032106,19.99817783,229.67,229.6,19.99817783]
[1732652032629,19.99817783,229.67,229.6,24.35337783]
[1732652033231,19.99817783,229.68,229.6,24.35337783]
[1732652033418,19.99817783,229.67,229.6,24.35337783]
[1732652034431,19.99817783,229.68,229.61,19.99817783]
[1732652035121,19.99817783,229.71,229.64,19.99817783]
[1732652035630,19.99817783,229.72,229.65,19.99817783]
[1732652036127,23.776884,229.71,229.65,19.99817783]
[1732652036332,19.99817783,229.7,229.63,24.35277783]
[1732652036709,43.77506183,229.71,229.64,19.99817783]
[1732652037532,19.99817783,229.73,229.66,19.99817783]
[1732652037727,19.99817783,229.69,229.61,19.99817783]
[1732652038113,19.99817783,229.69,229.62,4.355]
[1732652038619,19.99817783,229.69,229.63,19.99817783]
[1732652038844,19.99817783,229.7,229.63,19.99817783]
[1732652039415,19.99817783,229.7,229.63,24.35287783]
[1732652041619,19.99817783,229.71,229.63,24.35287783]
[1732652041837,19.99817783,229.69,229.63,4.3547]
[1732652042326,12.5303367,229.72,229.65,12.5303367]
[1732652042639,23.776884,229.71,229.64,12.5303367]
[1732652042831,12.5303367,229.72,229.58,15.2451]
[1732652043146,12.5303367,229.73,229.66,12.5303367]
[1732652044844,12.5303367,229.74,229.66,16.8843367]
[1732652045214,1.7406,229.81,229.7,12.5303367]
[1732652045436,12.5303367,229.8,229.73,12.5303367]
[1732652045643,12.5303367,229.82,229.74,12.5303367]
[1732652045818,12.5303367,229.82,229.68,12.5303367]
[1732652045819,12.5303367,229.81,229.73,12.5303367]
[1732652046228,12.5303367,229.81,229.74,12.5303367]
[1732652046436,12.5303367,229.81,229.68,12.5303367]
[1732652046437,12.5303367,229.82,229.75,12.5303367]
[1732652047021,12.5303367,229.8,229.72,12.5303367]
[1732652047243,12.5303367,229.8,229.73,12.5303367]
[1732652047746,12.5303367,229.82,229.75,12.5303367]
[1732652047921,12.5303367,229.86,229.79,12.5303367]
[1732652048119,12.5303367,229.89,229.82,12.5303367]
[1732652048330,12.5303367,229.9,229.83,12.5303367]
[1732652048531,12.5303367,229.89,229.82,12.5303367]
[1732652049226,12.5303367,229.9,229.83,12.5303367]
[1732652049912,1.24852743,230.0,229.89,12.5303367]
[1732652050128,12.5303367,230.0,229.93,12.5303367]
[1732652050326,12.5303367,230.01,229.94,12.5303367]
[1732652050555,12.5303367,229.98,229.89,30.4136]
[1732652050841,12.5303367,229.96,229.89,30.4136]
[1732652051049,12.5303367,229.96,229.89,42.9439367]
[1732652051241,12.5303367,229.93,229.86,12.5303367]
[1732652051627,12.5303367,229.94,229.86,16.8806367]
[1732652051851,12.5303367,229.97,229.89,12.5303367]
[1732652052056,23.776884,229.96,229.89,12.5303367]
[1732652052222,36.3072207,229.96,229.89,12.5303367]
[1732652052428,12.5303367,229.96,229.89,12.5303367]
[1732652052829,12.5303367,229.95,229.88,12.5303367]
[1732652053245,12.5303367,229.96,229.89,12.5303367]
[1732652053550,23.776884,230.0,229.84,4.3508]
[1732652053551,12.5303367,229.97,229.9,12.5303367]
[1732652053931,12.5303367,229.96,229.88,12.5303367]
[1732652054249,23.776884,230.0,229.87,20.0]
[1732652054250,12.5303367,229.95,229.87,12.5303367]
[1732652055435,25.515984,230.0,229.84,15.2279]
[1732652055436,12.5303367,229.96,229.88,16.8803367]
[1732652056252,12.5303367,229.97,229.9,12.5303367]
[1732652056851,12.5303367,229.99,229.91,12.5303367]
[1732652057058,12.5303367,229.98,229.9,12.5303367]
[1732652057257,12.5303367,229.97,229.9,12.5303367]
[1732652057442,12.5303367,229.97,229.9,16.8798367]
[1732652058038,12.5303367,229.98,229.9,16.8798367]
[1732652058233,12.5303367,229.96,229.88,12.5303367]
[1732652058565,12.5303367,229.92,229.85,16.8809367]
[1732652058856,12.5303367,229.92,229.84,10.8771]
[1732652058857,12.5303367,229.91,229.83,30.4136]
[1732652059156,12.5303367,229.88,229.83,34.7645]
[1732652059349,12.5303367,229.87,229.81,16.614]
[1732652059558,12.5303367,229.88,229.81,29.1443367]
[1732652059742,12.5303367,229.87,229.81,16.614]
[1732652060657,12.5303367,229.88,229.81,29.1443367]
[1732652061142,0.5,230.0,229.81,29.1443367]
[1732652061143,37.356884,230.01,229.86,32.5303367]
[1732652061348,12.5303367,229.95,229.87,12.5303367]
[1732652061550,12.5303367,229.96,229.88,12.5303367]
[1732652061748,12.5303367,229.98,229.91,12.5303367]
[1732652061951,12.5303367,229.97,229.9,12.5303367]
[1732652062535,12.5303367,230.0,229.92,12.5303367]
[1732652063264,12.5303367,230.01,229.93,12.5303367]
[1732652063435,12.5303367,230.02,229.94,12.5303367]
[1732652063640,12.5303367,230.01,229.93,12.5303367]
[1732652063863,12.5303367,230.03,229.96,12.5303367]
[1732652064043,12.5303367,230.04,229.96,12.5303367]
[1732652064245,12.5303367,230.06,229.98,12.5303367]
[1732652064464,12.5303367,230.08,230.01,12.5303367]
[1732652064844,12.5303367,230.1,230.02,12.5303367]
[1732652065259,12.5303367,230.1,230.03,12.5303367]
[1732652065566,12.5303367,230.1,230.02,16.8775367]
[1732652065863,12.5303367,230.08,230.02,4.3472]
[1732652066041,12.5303367,230.09,230.02,4.3472]
[1732652066241,21.79782592,230.09,230.02,4.3472]
[1732652066441,21.79782592,230.07,230.0,34.9838]
[1732652066665,21.79782592,230.06,230.0,34.9838]
[1732652066865,21.79782592,230.06,230.0,30.6362]
[1732652067065,21.79782592,230.07,230.0,34.9839]
[1732652067361,21.79782592,230.07,230.0,56.78172592]
[1732652069167,21.79782592,230.07,230.0,34.9839]
[1732652069467,21.79782592,230.06,230.0,30.6362]
[1732652069671,21.79782592,230.02,229.97,20.0]
[1732652069841,21.79782592,230.05,229.98,21.79782592]
[1732652070248,1.7383,230.11,229.98,21.79782592]
[1732652070249,21.79782592,230.06,229.98,21.79782592]
[1732652070452,21.79782592,230.05,229.97,41.79782592]
[1732652070771,21.79782592,230.05,229.98,21.79782592]
[1732652070973,21.79782592,230.05,229.99,4.348]
[1732652071157,21.79782592,230.08,230.0,21.79782592]
[1732652071349,21.79782592,230.11,230.04,21.79782592]
[1732652071766,21.79782592,230.12,230.05,21.79782592]
[1732652072063,21.79782592,230.15,230.08,21.79782592]
[1732652072272,21.79782592,230.16,230.09,21.79782592]
[1732652072457,21.79782592,230.16,230.08,21.79782592]
[1732652072969,21.79782592,230.16,230.09,4.3461]
[1732652073272,21.79782592,230.15,230.09,4.3461]
[1732652073649,1.7376,230.2,230.07,26.14412592]
[1732652073650,21.79782592,230.14,230.07,26.14412592]
[1732652073849,21.79782592,230.14,230.07,4.3463]
[1732652074046,21.79782592,230.11,230.05,30.6362]
[1732652074351,1.7376,230.2,230.0,34.36432592]
[1732652074352,21.79782592,230.07,230.0,34.36432592]
[1732652074751,21.79782592,230.08,230.0,34.36432592]
[1732652075172,21.79782592,230.07,230.0,38.71202592]
[1732652076568,20.75578308,230.09,230.0,12.5665]
[1732652076771,21.79782592,230.07,230.01,4.3475]
[1732652076963,21.79782592,230.05,229.99,35.5316]
[1732652077167,21.79782592,230.03,229.99,35.5316]
[1732652077365,1.7382,230.12,229.99,31.1838]
[1732652077366,21.79782592,230.02,229.99,31.1838]
[1732652077575,21.79782592,230.0,229.95,12.5665]
[1732652077956,21.79782592,230.01,229.95,12.5665]
[1732652078557,21.79782592,230.02,229.95,38.71302592]
[1732652078954,21.79782592,230.02,229.95,16.9152]
[1732652079277,21.79782592,230.01,229.95,16.9152]
[1732652079766,21.79782592,230.02,229.95,38.71302592]
[1732652079969,21.79782592,230.01,229.95,16.9152]
[1732652080163,21.79782592,230.02,229.95,38.71302592]
[1732652080779,21.79782592,230.07,230.0,21.79782592]
[1732652080957,0.5,230.15,230.01,21.79782592]
[1732652080958,21.79782592,230.08,230.01,21.79782592]
[1732652081575,21.79782592,230.1,230.03,21.79782592]
[1732652081771,21.79782592,230.09,230.02,21.79782592]
[1732652081950,21.79782592,230.08,230.01,21.79782592]
[1732652082154,21.79782592,230.08,230.0,21.79782592]
[1732652082355,21.79782592,230.05,229.99,4.348]
[1732652082680,21.79782592,230.0,229.95,12.5665]
[1732652082863,21.79782592,230.05,229.98,21.79782592]
[1732652083062,21.79782592,230.06,229.99,21.79782592]
[1732652083375,21.79782592,230.06,229.98,21.79782592]
[1732652083680,6.0831,230.14,230.03,21.79782592]
[1732652083681,21.79782592,230.1,230.03,21.79782592]
[1732652083976,21.79782592,230.1,230.03,26.14482592]
[1732652084173,21.79782592,230.11,230.04,21.79782592]
[1732652084561,21.79782592,230.12,230.04,21.79782592]
[1732652084877,21.79782592,230.11,230.03,26.14482592]
[1732652085256,21.79782592,230.12,230.04,21.79782592]
[1732652085655,21.79782592,230.12,230.05,21.79782592]
[1732652085856,21.79782592,230.12,230.06,4.3466]
[1732652086257,21.79782592,230.14,230.07,21.79782592]
[1732652086476,21.79782592,230.16,230.09,21.79782592]
[1732652086856,21.79782592,230.15,230.08,21.79782592]
[1732652087670,21.79782592,230.14,230.06,37.01112592]
[1732652087869,21.79782592,230.13,230.06,4.3466]
[1732652088072,21.79782592,230.11,230.06,4.3466]
[1732652088785,21.79782592,230.1,230.04,31.1838]
[1732652089093,21.79782592,230.11,230.04,35.5308]
[1732652090078,21.79782592,230.1,230.04,35.5308]
[1732652090460,1.7381,230.13,230.01,4.3474]
[1732652090669,21.79782592,230.07,230.01,4.3474]
[1732652091263,21.79782592,230.06,230.01,4.3474]
[1732652091480,21.79782592,230.05,229.99,35.5316]
[1732652092169,21.79782592,230.08,230.01,21.79782592]
[1732652092378,21.79782592,230.09,230.02,21.79782592]
[1732652092660,21.79782592,230.1,230.02,21.79782592]
[1732652093278,1.738,230.14,230.02,21.79782592]
[1732652093587,21.79782592,230.1,230.02,21.79782592]
[1732652093784,21.79782592,230.08,230.02,4.3473]
[1732652094275,21.79782592,230.06,230.0,4.3477]
[1732652094459,1.7382,230.12,229.95,12.5665]
[1732652094460,21.79782592,230.01,229.95,12.5665]
[1732652094660,21.79782592,230.0,229.95,16.9152]
[1732652094885,21.79782592,229.99,229.95,4.3487]
[1732652095091,21.79782592,229.96,229.88,31.1838]
[1732652095270,21.79782592,229.96,229.85,23.4428]
[1732652095271,21.79782592,229.9,229.85,12.5665]
[1732652095476,21.79782592,229.89,229.85,12.5665]
[1732652095669,21.79782592,229.89,229.83,4.351]
[1732652095865,5.0,230.02,229.83,26.14882592]
[1732652095866,21.79782592,229.9,229.83,26.14882592]
[1732652096064,21.79782592,229.91,229.84,21.79782592]
[1732652096272,21.79782592,229.91,229.83,26.14882592]
[1732652096666,21.79782592,229.91,229.84,21.79782592]
[1732652097369,21.79782592,229.91,229.85,4.3506]
[1732652097572,21.79782592,229.87,229.81,31.1838]
[1732652097887,21.79782592,229.84,229.76,21.79782592]
[1732652098188,21.79782592,229.85,229.78,21.79782592]
[1732652098484,21.79782592,229.92,229.77,26.14982592]
[1732652098485,21.79782592,229.84,229.77,26.14982592]
[1732652098688,21.79782592,229.92,229.77,26.14982592]
[1732652098689,21.79782592,229.86,229.78,21.79782592]
[1732652099264,21.79782592,229.87,229.79,21.79782592]
[1732652099685,21.79782592,229.91,229.83,21.79782592]
[1732652099980,21.79782592,229.9,229.83,21.79782592]
[1732652100182,21.79782592,229.88,229.8,21.79782592]
[1732652100499,21.79782592,229.88,229.79,20.0]
[1732652100500,21.79782592,229.86,229.79,20.0]
[1732652100670,21.79782592,229.89,229.82,21.79782592]
[1732652101076,21.79782592,229.91,229.83,21.79782592]
[1732652101272,21.79782592,229.9,229.82,21.79782592]
[1732652101472,21.79782592,229.88,229.81,21.79782592]
[1732652101677,21.79782592,229.91,229.84,21.79782592]
[1732652102168,21.79782592,229.91,229.83,21.79782592]
[1732652102489,5.5,230.01,229.8,15.2306]
[1732652102490,21.79782592,229.95,229.88,21.79782592]
[1732652102667,21.79782592,229.97,229.89,21.79782592]
[1732652102996,21.79782592,230.02,229.95,21.79782592]
[1732652103196,21.79782592,230.02,229.94,21.79782592]
[1732652103490,21.79782592,230.04,229.96,21.79782592]
[1732652103677,21.79782592,230.06,229.98,21.79782592]
[1732652103879,21.79782592,230.05,229.97,21.79782592]
[1732652104074,13.6507,230.14,229.99,21.79782592]
[1732652104075,21.79782592,230.07,229.99,21.79782592]
[1732652104299,21.79782592,230.03,229.95,21.79782592]
[1732652104599,21.79782592,229.98,229.9,37.02172592]
[1732652104769,21.79782592,229.98,229.91,21.79782592]
[1732652104966,21.79782592,229.99,229.92,21.79782592]
[1732652105191,21.79782592,229.96,229.9,4.3497]
[1732652105395,21.79782592,230.04,229.89,20.0]
[1732652105396,21.79782592,229.93,229.89,20.0]
[1732652105773,21.79782592,229.97,229.9,21.79782592]
[1732652105970,21.79782592,229.99,229.92,21.79782592]
[1732652106171,21.79782592,230.03,229.95,21.79782592]
[1732652106431,21.79782592,230.04,229.97,21.79782592]
[1732652106695,21.79782592,230.04,229.96,21.79782592]
[1732652106892,21.79782592,230.03,229.95,21.79782592]
[1732652107068,1.7382,230.12,229.97,21.79782592]
[1732652107069,21.79782592,230.04,229.97,21.79782592]
[1732652107271,21.79782592,230.01,229.94,21.79782592]
[1732652107488,21.79782592,229.98,229.91,4.3495]
[1732652107691,21.79782592,229.99,229.91,26.14732592]
[1732652107876,21.79782592,229.96,229.91,4.3495]
[1732652108377,21.79782592,229.97,229.91,4.3495]
[1732652108573,21.79782592,229.94,229.86,21.79782592]
[1732652108779,21.79782592,229.93,229.87,4.3502]
[1732652109086,21.79782592,229.95,229.88,21.79782592]
[1732652109286,21.79782592,229.89,229.83,32.6939]
[1732652109492,20.0,229.97,229.81,4.3514]
[1732652109493,21.79782592,229.86,229.81,4.3514]
[1732652109800,21.79782592,229.87,229.81,4.3514]
[1732652110108,21.79782592,229.86,229.81,4.3514]
[1732652110400,21.79782592,229.82,229.79,4.3517]
[1732652110582,21.79782592,229.83,229.77,4.352]
[1732652110786,21.79782592,229.84,229.77,26.14982592]
[1732652111199,21.79782592,229.83,229.77,4.352]
[1732652111404,21.79782592,229.92,229.77,4.352]
[1732652111405,21.79782592,229.84,229.77,26.14982592]
[1732652111705,21.79782592,229.86,229.78,21.79782592]
[1732652112194,21.79782592,229.88,229.78,20.0]
[1732652112386,21.79782592,229.9,229.82,21.79782592]
[1732652112585,21.79782592,229.88,229.8,21.79782592]
[1732652112884,21.79782592,229.9,229.82,21.79782592]
[1732652113085,23.776884,230.0,229.78,20.0]
[1732652113086,21.79782592,229.94,229.86,21.79782592]
[1732652113286,21.79782592,229.94,229.87,4.3502]
[1732652113484,21.79782592,229.91,229.87,4.3502]
[1732652113689,21.79782592,229.88,229.78,21.79782592]
[1732652113887,21.79782592,229.85,229.78,26.14972592]
[1732652114106,21.79782592,229.86,229.79,21.79782592]
[1732652114603,21.79782592,229.88,229.81,21.79782592]
[1732652114903,6.27068344,230.02,229.86,21.79782592]
[1732652114904,21.79782592,229.93,229.86,21.79782592]
[1732652115103,21.79782592,229.91,229.84,21.79782592]
[1732652115279,21.79782592,229.88,229.81,21.79782592]
[1732652115606,21.79782592,229.87,229.8,21.79782592]
[1732652115987,21.79782592,229.88,229.81,21.79782592]
[1732652116495,21.79782592,229.84,229.77,21.79782592]
[1732652116703,21.79782592,229.8,229.73,4.3529]
[1732652116881,21.79782592,229.75,229.69,12.5065]
[1732652117081,21.79782592,229.72,229.66,4.3542]
[1732652117291,21.79782592,229.71,229.66,4.3542]
[1732652117502,21.79782592,229.72,229.66,4.3542]
[1732652117701,21.79782592,229.8,229.66,26.15202592]
[1732652117702,21.79782592,229.73,229.66,26.15202592]
[1732652117890,21.79782592,229.72,229.66,4.3542]
[1732652118087,21.79782592,229.75,229.68,21.79782592]
[1732652118292,21.79782592,229.77,229.7,21.79782592]
[1732652118495,21.79782592,229.77,229.66,4.3542]
[1732652118496,21.79782592,229.81,229.74,21.79782592]
[1732652118915,21.79782592,229.82,229.75,21.79782592]
[1732652119085,21.79782592,229.81,229.74,21.79782592]
[1732652119287,21.79782592,229.81,229.73,21.79782592]
[1732652119590,21.79782592,229.81,229.74,21.79782592]
[1732652119788,21.79782592,229.8,229.72,21.79782592]
[1732652120095,21.79782592,229.77,229.7,21.79782592]
[1732652120411,21.79782592,229.76,229.71,4.3533]
[1732652120599,21.79782592,229.78,229.71,4.3533]
[1732652120793,21.79782592,229.77,229.71,4.3533]
[1732652120995,21.79782592,229.76,229.69,21.79782592]
[1732652121910,21.79782592,229.79,229.72,21.79782592]
[1732652122298,21.79782592,229.77,229.7,21.79782592]
[1732652122611,21.79782592,229.78,229.71,21.79782592]
[1732652122991,21.79782592,229.78,229.7,21.79782592]
[1732652123215,21.79782592,229.78,229.7,41.79782592]
[1732652123399,21.79782592,229.83,229.76,21.79782592]
[1732652123718,1.8051,229.87,229.8,21.79782592]
[1732652123719,21.79782592,229.87,229.8,21.79782592]
[1732652124010,21.79782592,229.85,229.77,21.79782592]
[1732652124213,21.79782592,229.86,229.79,21.79782592]
[1732652124403,21.79782592,229.87,229.79,21.79782592]
[1732652124609,21.79782592,229.89,229.82,21.79782592]
[1732652124914,13.2685,229.91,229.74,10.8817]
[1732652124915,21.79782592,229.84,229.76,21.79782592]
[1732652125215,21.79782592,229.84,229.77,41.79782592]
[1732652125410,21.79782592,229.83,229.76,21.79782592]
[1732652125602,21.79782592,229.82,229.75,21.79782592]
[1732652125807,21.79782592,229.83,229.76,21.79782592]
[1732652126195,21.79782592,229.83,229.77,4.3521]
[1732652126513,21.79782592,229.87,229.79,21.79782592]
[1732652126811,13.2685,229.91,229.82,21.79782592]
[1732652126812,21.79782592,229.89,229.82,21.79782592]
[1732652127391,13.2685,229.91,229.77,15.2325]
[1732652127392,13.2685,229.91,229.81,21.79782592]
[1732652127606,5.5,229.97,229.77,15.2325]
[1732652127607,21.79782592,229.92,229.84,21.79782592]
[1732652128122,21.79782592,229.92,229.85,21.79782592]
[1732652128313,21.79782592,229.91,229.83,21.79782592]
[1732652128513,21.79782592,229.91,229.84,21.79782592]
[1732652128713,21.79782592,229.92,229.85,21.79782592]
[1732652128904,1.3046,229.95,229.83,21.79782592]
[1732652128905,21.79782592,229.91,229.83,21.79782592]
[1732652129411,21.79782592,229.93,229.86,21.79782592]
[1732652129606,21.79782592,229.96,229.88,21.79782592]
[1732652129804,21.79782592,230.03,229.95,21.79782592]
[1732652130101,13.2685,230.09,229.9,12.5065]
[1732652130102,21.79782592,230.04,229.96,21.79782592]
[1732652130428,21.79782592,230.0,229.93,21.79782592]
[1732652130616,21.79782592,230.0,229.92,21.79782592]
[1732652130923,21.79782592,229.98,229.9,34.30432592]
[1732652131707,21.79782592,229.98,229.91,4.3495]
[1732652131907,21.79782592,229.99,229.92,21.79782592]
[1732652132609,21.79782592,230.0,229.93,21.79782592]
[1732652132925,21.79782592,229.98,229.91,21.79782592]
[1732652133228,21.79782592,229.98,229.91,4.3495]
[1732652133409,21.79782592,229.98,229.91,26.14732592]
[1732652133609,21.79782592,229.95,229.91,4.3495]
[1732652133814,21.79782592,229.92,229.85,12.1847]
[1732652134028,21.79782592,229.88,229.85,4.3506]
[1732652134198,21.79782592,229.86,229.8,4.3516]